bitfinex-derivatives/quotes_ETHF0:USTF0_20250612
["timestamp","ask_amount","ask_price","bid_price","bid_amount"]
[1749714427438,3.2078,2746.4,2745.8,30.28542]
[1749714427637,8.60496665,2746.3,2746.2,0.72813]
[1749714427841,0.00542806,2746.4,2746.2,25.254]
[1749714428233,0.00542806,2746.4,2746.1,3.2078]
[1749714428440,0.00542806,2746.4,2746.3,25.25]
[1749714428644,0.00542806,2746.4,2746.3,25.97812]
[1749714429938,0.00542806,2746.4,2746.3,30.97812]
[1749714430139,0.5439,2746.9,2746.8,0.72799]
[1749714430339,0.5439,2746.9,2746.8,25.244]
[1749714430539,12.35666665,2746.9,2746.4,1.5941]
[1749714430741,0.72799,2746.8,2746.7,5.934]
[1749714430936,8.60496665,2746.6,2746.5,19.309]
[1749714431140,8.60496665,2746.6,2746.5,25.97107]
[1749714431341,0.72791,2747.1,2746.5,25.243]
[1749714431540,8.60496665,2746.9,2746.8,0.72798]
[1749714431747,8.60496665,2747.0,2746.9,0.72796]
[1749714431945,8.60496665,2747.1,2746.8,19.301]
[1749714432141,8.60496665,2747.1,2746.8,20.02898]
[1749714432441,8.60496665,2747.1,2746.8,19.301]
[1749714432641,3.2078,2747.2,2747.0,0.72793]
[1749714432840,3.2078,2747.2,2747.1,0.72791]
[1749714433144,0.72778,2747.6,2747.1,0.72789]
[1749714433445,8.60496665,2747.4,2747.3,0.72786]
[1749714433640,8.60496665,2747.4,2747.2,22.5008]
[1749714433641,4.8433,2747.8,2747.5,0.72778]
[1749714433948,8.60496665,2747.6,2747.2,3.2078]
[1749714434243,4.8433,2747.8,2747.5,0.7278]
[1749714434446,8.60496665,2747.7,2747.3,25.223]
[1749714434639,8.60496665,2747.7,2747.4,0.72782]
[1749714435045,8.60496665,2747.7,2747.3,25.223]
[1749714435840,1.6355,2747.8,2747.3,25.223]
[1749714436148,8.60496665,2747.7,2747.6,0.72778]
[1749714436343,8.60496665,2747.7,2747.6,20.01378]
[1749714436542,1.5712,2748.0,2747.6,20.01376]
[1749714436743,8.60496665,2747.7,2747.6,20.01376]
[1749714437140,1.6746,2747.9,2747.6,20.01376]
[1749714437339,8.60496665,2747.7,2747.6,20.01376]
[1749714437745,3.2078,2748.1,2747.6,19.286]
[1749714437940,8.60496665,2747.9,2747.8,0.72771]
[1749714438139,8.60496665,2747.9,2747.8,6.65871]
[1749714438337,1.6746,2748.0,2747.8,6.65871]
[1749714438537,8.60496665,2747.9,2747.8,5.931]
[1749714438749,8.60496665,2747.9,2747.8,6.65872]
[1749714438942,1.6746,2748.0,2747.8,5.931]
[1749714439143,8.60496665,2747.9,2747.8,5.931]
[1749714439342,8.60496665,2747.9,2747.8,6.65872]
[1749714439643,1.6746,2748.0,2747.8,5.931]
[1749714440338,9.33266665,2747.9,2747.8,5.93]
[1749714440647,10.17296665,2747.9,2747.8,25.198]
[1749714441547,11.76076665,2747.9,2747.8,25.198]
[1749714442645,12.48846665,2747.9,2747.8,25.198]
[1749714442849,11.76076665,2747.9,2747.8,25.198]
[1749714444251,12.48846665,2747.9,2747.8,25.198]
[1749714444550,11.76076665,2747.9,2747.8,25.198]
[1749714446357,11.76076665,2747.9,2747.8,25.92572]
[1749714446549,10.19276665,2747.9,2747.8,25.92572]
[1749714446948,0.72758,2748.4,2747.8,25.198]
[1749714447251,8.60496665,2748.0,2747.6,3.2078]
[1749714447454,4.9009,2748.5,2747.6,3.2078]
[1749714447455,10.25886665,2747.9,2747.8,0.72771]
[1749714447650,1.6539,2747.9,2747.8,0.72771]
[1749714448357,1.6539,2747.9,2747.8,25.85771]
[1749714450753,0.72758,2748.4,2748.0,0.72766]
[1749714450960,8.60496665,2748.1,2748.0,0.72766]
[1749714451148,8.60496665,2748.1,2748.0,19.96466]
[1749714451351,2.348,2748.3,2748.0,19.237]
[1749714451547,1.6204,2748.3,2748.2,0.72762]
[1749714452953,4.9009,2748.5,2748.4,0.72756]
[1749714453268,1.6204,2748.7,2748.6,0.72751]
[1749714453560,10.21476665,2749.2,2748.7,1.81872]
[1749714453752,8.60496665,2749.2,2749.1,0.72738]
[1749714453953,4.8282,2749.4,2749.2,0.72733]
[1749714454158,8.60496665,2749.3,2748.9,3.2078]
[1749714454358,10.27986665,2749.2,2749.1,0.72736]
[1749714454661,8.60496665,2749.2,2749.1,25.83636]
[1749714454962,3.2078,2749.8,2749.1,25.109]
[1749714455161,8.60496665,2749.2,2748.9,3.2078]
[1749714455460,10.27986665,2749.1,2749.0,25.83441]
[1749714455655,10.27986665,2749.1,2748.9,3.2078]
[1749714455861,10.27986665,2749.1,2749.0,25.83341]
[1749714457359,10.27986665,2749.1,2748.8,0.72745]
[1749714457663,1.6749,2749.1,2749.0,25.103]
[1749714458162,10.27986665,2749.1,2749.0,25.103]
[1749714458463,10.27986665,2749.1,2749.0,25.096]
[1749714458964,11.50782334,2749.1,2749.0,25.096]
[1749714459159,10.27986665,2749.1,2749.0,25.096]
[1749714459354,10.27986665,2749.1,2749.0,25.82341]
[1749714459855,1.6749,2749.1,2749.0,25.82341]
[1749714460363,1.6749,2749.1,2749.0,25.096]
[1749714460663,10.27986665,2749.1,2749.0,25.09]
[1749714460963,3.2078,2749.5,2749.0,25.09]
[1749714461265,8.60496665,2749.2,2749.1,0.72738]
[1749714461659,4.8526,2749.5,2749.1,0.72738]
[1749714461861,8.60496665,2749.2,2749.1,0.72738]
[1749714462364,4.8526,2749.5,2749.0,25.09]
[1749714462560,8.60496665,2749.2,2749.1,0.72738]
[1749714462761,8.60496665,2749.2,2749.1,25.81038]
[1749714463060,4.8526,2749.5,2749.2,0.72734]
[1749714463460,8.60496665,2749.3,2748.8,3.2078]
[1749714463760,5.50727,2749.2,2748.9,25.079]
[1749714464064,9.33237665,2749.0,2748.9,25.079]
[1749714464264,8.60496665,2749.0,2748.9,25.078]
[1749714464768,9.33237665,2749.0,2748.9,25.077]
[1749714465066,12.10086964,2749.0,2748.9,25.077]
[1749714465265,12.10086964,2749.0,2748.9,5.883]
[1749714465459,12.09691267,2749.0,2748.9,25.075]
[1749714465658,11.36950267,2749.0,2748.7,22.007]
[1749714465859,9.33242665,2748.8,2748.7,22.007]
[1749714466065,9.33242665,2748.8,2748.7,19.191]
[1749714466254,10.88302665,2748.8,2748.7,19.191]
[1749714466657,0.72748,2748.7,2748.6,5.883]
[1749714466862,10.88304665,2748.7,2748.6,19.188]
[1749714467060,0.72754,2748.5,2748.4,0.0054616]
[1749714467272,13.00516138,2748.5,2748.4,19.1924616]
[1749714467464,13.73270138,2748.5,2748.4,19.1924616]
[1749714467656,13.00516138,2748.5,2748.4,19.1914616]
[1749714467860,1.5506,2748.7,2748.6,0.72751]
[1749714468067,2.0778,2749.1,2749.0,0.72741]
[1749714468263,2.0778,2749.1,2749.0,19.91341]
[1749714468467,10.69836665,2749.1,2749.0,19.91341]
[1749714469064,9.14776665,2749.1,2749.0,19.91341]
[1749714469662,0.5428,2749.1,2749.0,19.91341]
[1749714469858,0.5428,2749.1,2749.0,19.186]
[1749714470766,1.6895,2749.4,2749.1,0.72738]
[1749714471065,8.60496665,2749.2,2749.1,0.72738]
[1749714471569,1.6895,2749.4,2749.1,0.72736]
[1749714471760,8.60496665,2749.3,2749.0,19.186]
[1749714471966,4.77,2749.8,2749.2,0.72734]
[1749714472167,8.60496665,2749.4,2749.3,19.174]
[1749714472371,1.6781,2749.7,2749.3,25.056]
[1749714472576,8.60496665,2749.5,2749.3,25.056]
[1749714472871,8.60496665,2749.5,2749.3,25.78332]
[1749714473174,1.6781,2749.7,2749.3,25.78332]
[1749714473376,8.60496665,2749.6,2749.3,25.78332]
[1749714474672,10.28306665,2749.6,2749.4,0.72729]
[1749714474968,8.60496665,2749.6,2749.3,25.78331]
[1749714475169,8.60496665,2749.6,2749.3,25.056]
[1749714475368,1.6028,2749.5,2749.3,0.72731]
[1749714475564,1.6028,2749.5,2749.4,24.998]
[1749714476267,1.6028,2749.5,2749.4,25.7253]
[1749714476673,1.6028,2749.5,2748.9,25.2038]
[1749714476869,1.6028,2749.5,2749.1,0.72737]
[1749714477369,0.72731,2749.4,2749.0,41.5274]
[1749714477576,10.20776665,2749.3,2749.1,5.834]
[1749714477876,10.20776665,2749.3,2749.2,19.158]
[1749714478363,10.93509665,2749.3,2749.2,5.834]
[1749714478566,10.93510665,2749.3,2749.2,24.99]
[1749714478764,10.20776665,2749.3,2748.9,21.996]
[1749714478977,8.60496665,2749.0,2748.9,21.996]
[1749714479176,8.60496665,2749.0,2748.9,47.71143]
[1749714479474,10.24006665,2749.0,2748.9,47.71143]
[1749714479773,10.24006665,2749.0,2748.9,46.983]
[1749714480676,10.24006665,2749.0,2748.9,47.71043]
[1749714480869,8.60496665,2749.0,2748.9,47.71043]
[1749714481074,5.6426,2749.4,2749.0,0.72738]
[1749714481275,8.60496665,2749.2,2748.9,47.71042]
[1749714481473,8.60496665,2749.1,2748.9,21.996]
[1749714481673,8.60496665,2749.0,2748.7,5.834]
[1749714481973,10.30786665,2748.9,2748.8,19.147]
[1749714482175,8.60496665,2748.8,2748.7,5.834]
[1749714482469,10.30786665,2748.8,2748.7,25.70748]
[1749714482871,10.30786665,2748.8,2748.7,24.98]
[1749714483480,10.30786665,2748.8,2748.7,25.70748]
[1749714484267,10.30786665,2748.8,2748.7,24.98]
[1749714484570,10.30786665,2748.8,2748.7,25.70748]
[1749714484876,3.2802,2749.4,2748.7,24.98]
[1749714485181,9.33242665,2748.8,2748.7,5.834]
[1749714485382,8.60496665,2748.8,2748.7,24.972]
[1749714485681,1.6254,2749.1,2748.9,0.72743]
[1749714485982,3.2802,2749.4,2748.9,0.72743]
[1749714485983,3.2078,2749.8,2749.3,0.72731]
[1749714486173,2.168,2749.7,2749.4,19.138]
[1749714486368,0.72726,2749.6,2749.4,19.138]
[1749714486575,10.23036665,2749.5,2749.4,19.138]
[1749714486975,10.23036665,2749.5,2749.4,19.8653]
[1749714487175,0.5426,2749.7,2749.4,19.138]
[1749714487383,8.60496665,2749.6,2749.5,0.72726]
[1749714487576,0.5426,2749.7,2749.6,0.72725]
[1749714487780,8.60496665,2749.6,2749.4,23.9598]
[1749714488078,8.60496665,2749.6,2749.5,0.72727]
[1749714488279,0.5426,2749.7,2749.5,24.964]
[1749714488475,0.5426,2749.7,2749.6,0.72725]
[1749714489075,9.14756665,2749.7,2749.4,4.8218]
[1749714489281,8.60496665,2749.6,2749.5,24.962]
[1749714489482,10.15836665,2749.6,2749.5,24.962]
[1749714491082,0.5426,2749.7,2749.5,24.962]
[1749714491284,9.14756665,2749.7,2749.6,0.72725]
[1749714491486,0.5426,2749.7,2749.6,0.72725]
[1749714492282,0.5426,2749.7,2749.6,2.37185]
[1749714492883,1.6042,2750.5,2750.2,0.72708]
[1749714493082,8.60496665,2750.3,2750.2,9.76889]
[1749714493283,8.60496665,2750.3,2750.2,28.88489]
[1749714493882,8.60496665,2750.3,2750.2,28.1578]
[1749714494487,8.60496665,2750.3,2750.2,28.88489]
[1749714495082,8.60496665,2750.3,2750.2,28.1578]
[1749714495291,8.60496665,2750.3,2750.2,24.942]
[1749714495585,8.60496665,2750.3,2750.2,28.87689]
[1749714496287,3.2898,2750.8,2750.2,28.1498]
[1749714496489,8.60496665,2750.6,2750.5,0.72701]
[1749714496689,8.60496665,2750.6,2750.5,19.83301]
[1749714496887,3.2078,2750.9,2750.8,0.72693]
[1749714497188,1.5895,2751.1,2750.8,19.103]
[1749714497390,8.60496665,2750.9,2750.8,19.103]
[1749714497592,8.60496665,2750.9,2750.8,19.82993]
[1749714498282,3.2078,2751.5,2750.8,3.93472]
[1749714498488,8.60496665,2751.0,2750.8,3.2078]
[1749714498683,1.5895,2750.9,2750.8,3.2078]
[1749714498995,1.5895,2750.9,2750.8,28.86573]
[1749714499185,3.1123,2751.4,2750.8,28.1388]
[1749714499492,3.1123,2751.4,2751.1,0.72685]
[1749714499493,8.60496665,2751.2,2751.1,0.72685]
[1749714499786,3.9344,2752.1,2751.6,0.72671]
[1749714499992,8.60496665,2751.7,2751.6,0.00545019]
[1749714500292,8.60496665,2751.7,2751.6,19.09745019]
[1749714500495,8.60496665,2751.7,2751.6,19.09645019]
[1749714500496,12.53946665,2751.7,2751.6,19.09645019]
[1749714500790,14.99556665,2751.7,2751.6,19.09645019]
[1749714501194,15.72226665,2751.7,2751.6,19.09645019]
[1749714501391,20.72226665,2751.7,2751.6,0.00545019]
[1749714501591,14.99556665,2751.7,2751.6,0.00545019]
[1749714501988,11.78776665,2751.7,2751.6,0.00545019]
[1749714502184,8.60496665,2751.7,2751.6,6.56417019]
[1749714502494,0.0620172,2751.8,2751.6,6.56417019]
[1749714502495,0.0620172,2751.8,2751.6,5.83745019]
[1749714502692,8.60496665,2751.7,2751.6,0.00545019]
[1749714502899,10.29796665,2751.7,2751.6,24.92145019]
[1749714503195,3.2078,2752.0,2751.8,0.72667]
[1749714503397,8.60496665,2751.9,2751.7,0.72668]
[1749714503595,8.60496665,2751.7,2751.6,6.56315019]
[1749714503791,8.60496665,2751.7,2751.6,25.64415019]
[1749714503997,0.0620172,2751.7,2751.6,24.91745019]
[1749714504494,0.0620172,2751.7,2751.6,25.64417019]
[1749714505194,1.693,2751.9,2751.6,24.91745019]
[1749714505389,8.60496665,2751.7,2751.6,24.91745019]
[1749714505789,8.60496665,2751.7,2751.6,0.00545019]
[1749714505790,11.81276665,2751.7,2751.6,0.00545019]
[1749714506003,12.53945665,2751.7,2751.6,0.00545019]
[1749714506194,1.81681,2751.6,2750.8,4.8619]
[1749714506503,3.2078,2751.7,2751.2,0.72682]
[1749714506692,3.2078,2751.7,2751.1,3.2078]
[1749714506693,0.72676,2751.5,2751.3,19.071]
[1749714507295,0.72677,2751.4,2751.3,19.071]
[1749714507991,5.02999215,2751.7,2751.1,3.21325019]
[1749714508196,0.72681,2751.3,2751.2,19.066]
[1749714508702,0.7268,2751.3,2751.2,19.066]
[1749714508907,0.72679,2751.4,2751.2,19.79283]
[1749714509196,0.7268,2751.3,2751.2,19.066]
[1749714509703,0.72678,2751.4,2751.3,0.7268]
[1749714510003,4.00192935,2751.7,2751.2,20.88303]
[1749714510198,0.00541215,2751.7,2751.6,0.72672]
[1749714510397,0.00541215,2751.7,2751.6,19.78772]
[1749714510599,2.33050215,2751.7,2751.6,19.061]
[1749714510799,0.72672,2751.6,2751.5,3.2078]
[1749714510993,2.32512,2751.6,2751.5,22.2668]
[1749714511200,1.5984,2751.6,2751.5,22.2668]
[1749714511396,1.5984,2751.6,2751.2,0.72682]
[1749714511706,0.72678,2751.4,2751.3,19.058]
[1749714512409,0.72678,2751.4,2751.3,24.836]
[1749714513113,0.72683,2751.2,2751.1,8.99325019]
[1749714513410,0.72683,2751.2,2751.1,28.04625019]
[1749714513611,0.72683,2751.2,2751.1,3.21325019]
[1749714514006,0.72683,2751.2,2751.1,0.00545019]
[1749714514514,10.54163,2751.2,2751.1,0.00545019]
[1749714514711,0.72699,2750.6,2750.5,3.2078]
[1749714515009,0.72708,2750.3,2750.2,3.93489]
[1749714515211,3.2529,2750.5,2750.2,22.2568]
[1749714515407,0.72706,2750.3,2750.2,22.2568]
[1749714515804,0.72706,2750.3,2750.2,3.2078]
[1749714516016,0.72705,2750.4,2750.2,3.2078]
[1749714516311,1.5853,2750.3,2750.2,3.2078]
[1749714516501,2.31236,2750.3,2750.2,22.2538]
[1749714516705,1.5853,2750.3,2750.2,22.2538]
[1749714517111,2.31236,2750.3,2750.2,22.2538]
[1749714517610,0.1989,2750.6,2750.2,22.2538]
[1749714517917,0.1989,2750.6,2750.5,3.2078]
[1749714518410,0.92589,2750.6,2750.5,3.2078]
[1749714518607,0.72706,2750.3,2750.2,3.2078]
[1749714518909,0.72706,2750.3,2750.2,22.2488]
[1749714521212,0.72706,2750.3,2750.2,22.2478]
[1749714522710,0.1989,2750.6,2750.2,22.2478]
[1749714522913,1.633,2750.5,2750.2,3.2078]
[1749714523115,0.72704,2750.4,2750.3,19.033]
[1749714524716,0.72706,2750.3,2750.2,22.2368]
[1749714525319,2.41636,2750.3,2750.2,3.2078]
[1749714526313,0.72712,2750.1,2750.0,19.03345019]
[1749714527414,0.72712,2750.1,2750.0,0.00545019]
[1749714527614,8.93492,2750.1,2750.0,1.9e-07]
[1749714529017,10.60232,2750.1,2750.0,1.9e-07]
[1749714530520,8.93492,2750.1,2750.0,1.9e-07]
[1749714531821,10.54312,2750.1,2750.0,1.9e-07]
[1749714532121,3.93492,2750.1,2750.0,1.9e-07]
[1749714532319,5.54312,2750.1,2750.0,1.9e-07]
[1749714532526,5.74212,2750.1,2750.0,1.9e-07]
[1749714533821,10.74212,2750.1,2750.0,1.9e-07]
[1749714534221,4.13392,2750.1,2750.0,1.9e-07]
[1749714535318,0.92612,2750.1,2750.0,1.9e-07]
[1749714536124,0.92612,2750.1,2750.0,1.68640019]
[1749714540520,0.92612,2750.1,2750.0,1.9e-07]
[1749714541024,0.92612,2750.1,2750.0,0.72714019]
[1749714541217,0.92612,2750.1,2750.0,1.64370019]
[1749714542215,0.199,2750.1,2750.0,1.64370019]
[1749714542514,0.199,2750.1,2750.0,2.37084019]
[1749714542925,0.199,2750.1,2750.0,8.10584019]
[1749714543128,0.199,2750.1,2750.0,27.09384019]
[1749714543521,0.92612,2750.1,2750.0,26.36570019]
[1749714543932,0.92612,2750.1,2750.0,26.36470019]
[1749714545130,0.199,2750.1,2750.0,26.36470019]
[1749714545632,0.199,2750.1,2750.0,26.35870019]
[1749714545828,0.92612,2750.1,2750.0,26.35870019]
[1749714546829,0.92612,2750.1,2750.0,26.35770019]
[1749714547017,0.92612,2750.1,2750.0,1.64370019]
[1749714547218,0.92612,2750.1,2750.0,1.9e-07]
[1749714549830,0.9881372,2750.1,2750.0,1.9e-07]
[1749714551031,0.2610172,2750.1,2750.0,0.72714019]
[1749714551227,0.2610172,2750.1,2750.0,8.15614019]
[1749714552124,0.72699,2750.6,2750.3,0.72705]
[1749714552327,1.27227,2750.7,2750.4,22.99993]
[1749714552527,0.72697,2750.7,2750.4,22.99993]
[1749714552827,0.72694,2750.8,2750.5,0.72699]
[1749714553018,4.7697,2751.1,2750.6,3.3498]
[1749714553323,0.72693,2750.8,2750.7,1.694]
[1749714554530,3.2078,2751.1,2750.7,1.694]
[1749714554733,0.72689,2751.0,2750.7,2.42093]
[1749714555029,0.72691,2750.9,2750.8,1.541]
[1749714555530,0.72696,2750.7,2750.6,1.6558]
[1749714556230,0.72696,2750.7,2750.6,20.6068]
[1749714557029,0.72696,2750.7,2750.6,18.95]
[1749714557230,0.72701,2750.5,2750.4,1.6169]
[1749714557424,0.72709,2750.2,2750.1,23.7585]
[1749714558125,0.72709,2750.2,2750.1,24.48562]
[1749714558529,0.72708,2750.3,2750.1,23.7585]
[1749714558727,3.2034,2750.8,2750.1,23.7585]
[1749714558926,0.72699,2750.6,2750.5,3.2078]
[1749714559424,1.81752,2750.6,2750.1,23.7585]
[1749714559619,0.72709,2750.2,2750.1,4.8125]
[1749714559820,0.0620172,2750.2,2750.1,24.4796]
[1749714560233,0.7891072,2750.2,2750.1,24.47962]
[1749714560727,0.7891072,2750.2,2750.1,24.47762]
[1749714561125,0.0620172,2750.2,2750.1,24.47762]
[1749714561534,0.7891072,2750.2,2750.1,24.47762]
[1749714562333,0.7891072,2750.2,2750.1,23.7505]
[1749714562531,0.72712,2750.1,2750.0,1.9e-07]
[1749714562736,8.78442,2750.1,2750.0,1.9e-07]
[1749714563528,5.57662,2750.1,2750.0,1.9e-07]
[1749714563733,1.6119,2750.1,2750.0,1.9e-07]
[1749714564037,0.72712,2750.1,2750.0,19.65812019]
[1749714564233,0.72712,2750.1,2750.0,18.93100019]
[1749714564627,0.0620172,2750.2,2750.0,22.13880019]
[1749714564831,0.0620172,2750.2,2750.1,0.72712]
[1749714565735,0.0620172,2750.2,2750.0,22.13880019]
[1749714565736,0.72712,2750.1,2750.0,22.13880019]
[1749714566336,0.72712,2750.1,2750.0,18.93100019]
[1749714568740,0.72712,2750.1,2750.0,19.65814019]
[1749714569544,0.0620172,2750.2,2750.0,18.93100019]
[1749714569742,0.0620172,2750.2,2750.0,20.59110019]
[1749714569941,0.7891172,2750.2,2750.0,21.31822019]
[1749714570543,0.0620172,2750.2,2750.0,20.59110019]
[1749714571147,0.7891172,2750.2,2750.0,20.59110019]
[1749714571441,0.0620172,2750.2,2750.1,0.72712]
[1749714571643,0.7891072,2750.2,2750.1,0.72712]
[1749714572044,0.7891072,2750.2,2750.0,21.31822019]
[1749714572245,0.0620172,2750.2,2750.1,0.72712]
[1749714572544,0.7891072,2750.2,2750.1,0.72712]
[1749714572744,0.7891072,2750.2,2750.0,21.31822019]
[1749714573049,0.72712,2750.1,2750.0,20.59110019]
[1749714573251,0.72712,2750.1,2750.0,18.93100019]
[1749714573742,0.72712,2750.1,2750.0,18.90500019]
[1749714573938,0.72712,2750.1,2750.0,1.9e-07]
[1749714574138,5.51142,2750.1,2750.0,1.9e-07]
[1749714574946,2.34742,2750.1,2750.0,1.9e-07]
[1749714578546,7.34742,2750.1,2750.0,1.9e-07]
[1749714579353,10.55522,2750.1,2750.0,1.9e-07]
[1749714580857,0.72733,2749.3,2749.2,3.2078]
[1749714587051,0.72733,2749.3,2749.2,4.8278]
[1749714587251,0.72733,2749.3,2749.2,3.2078]
[1749714587450,0.72733,2749.3,2749.2,22.0828]
[1749714592063,0.72733,2749.3,2749.2,22.81016]
[1749714592263,0.72733,2749.3,2749.2,22.0828]
[1749714592468,0.72733,2749.3,2749.2,22.81016]
[1749714592664,0.72733,2749.3,2749.2,22.0828]
[1749714593562,0.72738,2749.1,2749.0,0.00545019]
[1749714594171,2.31208,2749.1,2749.0,0.00545019]
[1749714594365,10.51988,2749.1,2749.0,1.9e-07]
[1749714596862,5.51988,2749.1,2749.0,1.9e-07]
[1749714597163,10.51988,2749.1,2749.0,1.9e-07]
[1749714597767,5.51988,2749.1,2749.0,1.9e-07]
[1749714598464,10.51988,2749.1,2749.0,1.9e-07]
[1749714598665,1.81907,2748.2,2747.4,3.2078]
[1749714598872,1.81907,2748.2,2747.4,3.93562]
[1749714598873,0.7278,2747.6,2747.4,3.93562]
[1749714599069,3.2078,2748.0,2747.4,3.2078]
[1749714599269,3.2078,2748.0,2747.5,0.7278]
[1749714599468,0.72776,2747.7,2747.5,2.3075]
[1749714599674,0.72776,2747.7,2747.6,1.6635]
[1749714599876,0.00545019,2747.9,2747.6,1.6635]
[1749714600069,0.00545019,2747.9,2747.7,7.13314]
[1749714600374,0.00545019,2747.9,2747.8,1.5966]
[1749714600577,0.73315019,2747.9,2747.8,1.5966]
[1749714600869,0.00545019,2747.9,2747.7,4.8088]
[1749714601070,0.00545019,2747.9,2747.7,6.4054]
[1749714601271,0.73316019,2747.9,2747.7,6.4054]
[1749714601476,0.72773,2747.8,2747.7,6.4054]
[1749714601674,0.00545019,2747.9,2747.7,7.13313]
[1749714601874,0.73315019,2747.9,2747.8,1.5966]
[1749714602971,0.72773,2747.8,2747.7,4.8088]
[1749714603169,0.72773,2747.8,2747.7,1.601]
[1749714606875,0.72775,2747.7,2747.6,1.6635]
[1749714607378,1.81949,2747.6,2746.1,1.88366254]
[1749714607576,1.81949,2747.6,2746.7,0.72799]
[1749714607577,3.2078,2747.0,2746.7,0.72799]
[1749714607770,3.2078,2747.0,2746.8,3.1849]
[1749714607978,3.93575,2747.0,2746.8,3.91288]
[1749714608282,0.72796,2746.9,2746.8,22.0099]
[1749714609381,3.2078,2747.0,2746.8,22.0099]
[1749714609880,3.2078,2747.0,2746.8,22.73788]
[1749714610078,0.72781,2747.5,2746.9,3.2078]
[1749714610275,0.72785,2747.4,2747.0,1.5903]
[1749714610471,0.72787,2747.3,2747.0,3.1332]
[1749714610882,0.72787,2747.3,2747.0,3.86114]
[1749714611481,3.2078,2747.6,2747.0,3.86114]
[1749714611482,0.72785,2747.4,2747.0,3.86114]
[1749714611678,0.72785,2747.4,2747.1,0.72791]
[1749714611880,0.72785,2747.4,2747.0,3.1332]
[1749714612081,0.72785,2747.4,2747.1,0.72791]
[1749714612479,0.72785,2747.4,2747.0,3.1332]
[1749714612480,0.72785,2747.4,2747.0,3.86112]
[1749714612687,0.72787,2747.3,2747.0,3.1332]
[1749714613184,0.72791,2747.1,2747.0,3.1332]
[1749714613381,0.72791,2747.1,2747.0,20.3599]
[1749714613586,0.72796,2746.9,2746.8,7.2129]
[1749714613777,0.72796,2746.9,2746.8,26.0259]
[1749714613977,3.2078,2747.2,2746.8,26.0259]
[1749714614183,3.2078,2747.2,2746.9,0.72796]
[1749714614383,3.2078,2747.2,2746.8,27.6299]
[1749714614685,3.9357,2747.2,2746.8,27.6299]
[1749714614880,3.2078,2747.2,2746.8,27.6299]
[1749714615085,0.72794,2747.0,2746.8,26.0259]
[1749714615285,0.72792,2747.1,2746.8,26.0259]
[1749714615482,0.72792,2747.1,2746.8,26.75388]
[1749714615888,3.2078,2747.2,2746.8,7.2129]
[1749714616088,0.72796,2746.9,2746.8,7.2129]
[1749714616385,0.72802,2746.7,2746.6,0.0054602]
[1749714620289,2.35462,2746.7,2746.6,0.0054602]
[1749714620589,0.546,2746.8,2746.6,0.0054602]
[1749714620790,3.2078,2747.2,2747.1,0.72791]
[1749714620984,3.2078,2747.6,2747.1,1.81979]
[1749714621187,3.2078,2747.6,2747.0,18.799]
[1749714621188,0.72781,2747.5,2747.3,0.72784]
[1749714621395,3.2078,2747.6,2747.2,1.6066]
[1749714621691,3.2078,2747.6,2747.3,1.6869]
[1749714621692,0.72783,2747.4,2747.3,1.6869]
[1749714623292,3.2078,2747.6,2746.6,3.2132602]
[1749714623488,0.72791,2747.1,2746.8,2.38038]
[1749714623688,0.72794,2747.0,2746.9,1.6869]
[1749714623893,0.72793,2747.1,2746.9,1.6869]
[1749714624097,3.9357,2747.2,2746.9,2.41485]
[1749714624283,0.7279,2747.2,2746.9,2.41485]
[1749714624487,0.7279,2747.2,2746.9,5.62265]
[1749714624694,0.72791,2747.1,2746.9,5.62265]
[1749714625187,0.7279,2747.2,2746.9,4.8947]
[1749714625394,0.7279,2747.2,2746.9,5.62266]
[1749714625587,0.7279,2747.2,2746.9,4.8947]
[1749714625786,0.72791,2747.2,2746.9,4.8947]
[1749714625987,3.2078,2747.2,2746.6,18.7904602]
[1749714626287,0.72795,2747.0,2746.8,1.7029]
[1749714626493,0.72796,2746.9,2746.8,1.7029]
[1749714626689,0.72796,2746.9,2746.8,22.1737]
[1749714626889,0.72796,2747.0,2746.8,22.1737]
[1749714627590,0.72794,2747.0,2746.8,22.1737]
[1749714627998,0.72796,2746.9,2746.8,22.1737]
[1749714628589,0.72795,2747.0,2746.8,22.1737]
[1749714629289,0.2912,2747.1,2746.6,0.0054602]
[1749714629492,0.72802,2746.7,2746.6,18.7814602]
[1749714630388,3.2078,2746.9,2746.6,0.0054602]
[1749714630596,0.72802,2746.7,2746.6,0.0054602]
[1749714635700,3.2078,2746.9,2746.8,0.72799]
[1749714635896,0.2912,2747.1,2746.6,0.0054602]
[1749714636091,0.2912,2747.1,2747.0,0.72794]
[1749714636291,0.2912,2747.1,2747.0,19.48994]
[1749714636891,1.5653,2747.8,2747.1,1.81979]
[1749714636892,3.2078,2747.8,2747.1,1.81979]
[1749714637093,3.2078,2747.8,2747.3,3.2078]
[1749714637303,3.93553,2747.8,2747.5,0.72779]
[1749714637604,3.93553,2747.8,2747.6,20.4823]
[1749714638097,3.2078,2747.8,2747.6,21.21006]
[1749714638300,3.2078,2747.8,2747.7,1.6881]
[1749714638603,3.2078,2747.8,2747.7,2.41585]
[1749714638993,3.2078,2747.8,2747.7,1.6881]
[1749714639195,3.2078,2747.8,2747.7,2.41585]
[1749714639503,3.2078,2747.8,2747.7,1.6881]
[1749714641500,3.93553,2747.8,2747.7,1.6881]
[1749714641897,1.81952,2747.5,2746.8,5.588]
[1749714642103,0.72796,2746.9,2746.8,24.332]
[1749714642805,3.2078,2747.0,2746.8,24.332]
[1749714643304,0.72787,2747.3,2747.0,0.72792]
[1749714643505,0.72787,2747.3,2747.1,1.7661]
[1749714644098,3.2078,2747.4,2747.1,1.7661]
[1749714644297,0.72787,2747.3,2747.1,2.49401]
[1749714644503,3.93564,2747.4,2747.1,2.49401]
[1749714645408,0.72786,2747.3,2747.1,1.7661]